fUSD/lending_fUSD_20240907
["ID","MTS","AMOUNT","RATE_DAILY","PERIOD"]
[337508701,1725726647089,-453.31099089,0.00014991,2]
[337508702,1725726647098,-500.0,0.00014991,2]
[337508703,1725726647107,-151.0,0.00014991,2]
[337508704,1725726647117,-500.0,0.00014991,2]
[337508705,1725726647127,-920.35,0.00014991,2]
[337508706,1725726647136,-822.93,0.00014991,2]
[337508707,1725726647146,-598.75,0.00014991,2]
[337508708,1725726647156,-1143.14,0.00014991,2]
[337508709,1725726647165,-500.0,0.00014991,2]
[337508710,1725726647176,-151.0,0.00014991,2]
[337508711,1725726647186,-500.0,0.00014991,2]
[337508712,1725726647195,-582.69,0.00014991,2]
[337508713,1725726647205,-500.0,0.00014991,2]
[337508714,1725726647215,-196.182694,0.00014991,2]
[337508715,1725726647224,-500.0,0.00014991,2]
[337508716,1725726647233,-153.212906,0.00014991,2]
[337508717,1725726647243,-1512.47,0.00014991,2]
[337508718,1725726647253,-500.0,0.00014991,2]
[337508719,1725726647262,-151.0,0.00014991,2]
[337508720,1725726647272,-568.33,0.00014991,2]
[337508721,1725726647281,-596.716396,0.00014991,2]
[337508722,1725726647291,-596.716396,0.00014991,2]
[337508723,1725726647300,-500.0,0.00014991,2]
[337508724,1725726647311,-731.618904,0.00014991,2]
[337508725,1725726647320,-731.618904,0.00014991,2]
[337508726,1725726647333,-500.0,0.00014991,2]
[337508727,1725726647343,-500.0,0.00014991,2]
[337508728,1725726647489,-6827.18,0.00014991,2]
[337508729,1725726647500,-151.0,0.00014991,2]
[337508730,1725726647510,-482.39,0.00014991,2]
[337508731,1725726647519,-500.0,0.00014991,2]
[337508732,1725726647529,-500.0,0.00014991,2]
[337508733,1725726647539,-808.6,0.00014991,2]
[337508734,1725726647549,-500.0,0.00014991,2]
[337508735,1725726647558,-500.0,0.00014991,2]
[337508736,1725726647568,-500.0,0.00014991,2]
[337508737,1725726647577,-500.0,0.00014991,2]
[337508738,1725726647586,-500.0,0.00014991,2]
[337508739,1725726647596,-500.0,0.00014991,2]
[337508740,1725726647605,-500.0,0.00014991,2]
[337508741,1725726647616,-1370.06,0.00014991,2]
[337508742,1725726647626,-151.0,0.00014991,2]
[337508743,1725726647636,-503.3,0.00014991,2]
[337508744,1725726647647,-393.387322,0.00014992,2]
[337508745,1725726647656,-12337.4168096,0.00014993,2]
[337508746,1725726647666,-535.0,0.00014994,2]
[337508747,1725726647677,-500.0,0.00014994,2]
[337508748,1725726647686,-3725.33,0.00014994,2]
[337508749,1725726647696,-4343.84,0.00014994,2]
[337508750,1725726647705,-5843.92,0.00014994,2]
[337508751,1725726647715,-5029.67,0.00014994,2]
[337508752,1725726647725,-5093.27,0.00014994,2]
[337508753,1725726647734,-711.13,0.00014994,2]
[337508754,1725726647743,-3553.18,0.00014994,2]
[337508755,1725726647753,-1977.37,0.00014994,2]
[337508756,1725726647763,-1414.33,0.00014994,2]
[337508757,1725726647773,-2454.92,0.00014994,2]
[337508758,1725726647782,-8602.8,0.00014994,2]
[337508759,1725726647791,-500.0,0.00014994,2]
[337508760,1725726647801,-13301.88,0.00014994,2]
[337508761,1725726647811,-6198.36,0.00014994,2]
[337508762,1725726647821,-4597.04,0.00014994,2]
[337508763,1725726647830,-10708.28,0.00014994,2]
[337508764,1725726647840,-5547.63,0.00014994,2]
[337508765,1725726647849,-8781.073974,0.00014994,2]
[337508766,1725726647859,-8781.073974,0.00014994,2]
[337508767,1725726647868,-4273.66,0.00014994,2]
[337508768,1725726647877,-7079.16,0.00014994,2]
[337508769,1725726647887,-10889.95,0.00014994,2]
[337508770,1725726647896,-2535.9884602,0.00014994,2]
[337508771,1725726647905,-500.0,0.00014994,2]
[337508772,1725726647915,-4039.09,0.00014994,2]
[337508773,1725726647926,-607.0,0.00014994,2]
[337508774,1725726647936,-1838.3900662,0.00014994,2]
[337508775,1725726647946,-1621.7,0.00014994,2]
[337508776,1725726647955,-1574.7,0.00014994,2]
[337508777,1725726647966,-986.59,0.00014994,2]
[337508778,1725726647976,-500.0,0.00014995,2]
[337508779,1725726647986,-500.0,0.00014995,2]
[337508780,1725726647995,-346.54,0.00014995,2]
[337508781,1725726648004,-500.0,0.00014995,2]
[337508782,1725726648014,-543.12,0.00014995,2]
[337508783,1725726648024,-500.0,0.00014995,2]
[337508784,1725726648033,-500.0,0.00014995,2]
[337508785,1725726648043,-500.0,0.00014995,2]
[337508786,1725726648052,-500.0,0.00014995,2]
[337508787,1725726648063,-500.0,0.00014995,2]
[337508788,1725726648072,-500.0,0.00014995,2]
[337508789,1725726648081,-925.29,0.00014995,2]
[337508790,1725726648091,-500.0,0.00014995,2]
[337508791,1725726648101,-760.19,0.00014995,2]
[337508792,1725726648111,-500.0,0.00014995,2]
[337508793,1725726648121,-500.0,0.00014995,2]
[337508794,1725726648131,-500.0,0.00014995,2]
[337508795,1725726648140,-500.0,0.00014995,2]
[337508796,1725726648150,-931.93,0.00014995,2]
[337508797,1725726648160,-151.0,0.00014995,2]
[337508798,1725726648170,-500.0,0.00014995,2]
[337508799,1725726648182,-500.0,0.00014995,2]
[337508800,1725726648192,-500.0,0.00014995,2]
[337508801,1725726648203,-1953.6,0.00014995,2]
[337508802,1725726648212,-1953.6,0.00014995,2]
[337508803,1725726648222,-500.0,0.00014995,2]
[337508804,1725726648232,-500.0,0.00014995,2]
[337508805,1725726648242,-500.0,0.00014995,2]
[337508806,1725726648251,-90447.81,0.00014995,2]
[337508807,1725726648261,-90447.81,0.00014995,2]
[337508808,1725726648271,-500.0,0.00014995,2]
[337508809,1725726648281,-4746.81,0.00014995,2]
[337508810,1725726648290,-4746.81,0.00014995,2]
[337508811,1725726648300,-2100.58,0.00014995,2]
[337508812,1725726648309,-151.0,0.00014995,2]
[337508813,1725726648318,-500.0,0.00014995,2]
[337508814,1725726648328,-500.0,0.00014995,2]
[337508815,1725726648342,-2442.79,0.00014995,2]
[337508816,1725726648351,-2442.79,0.00014995,2]
[337508817,1725726648361,-500.0,0.00014995,2]
[337508818,1725726648371,-167.35,0.00014995,2]
[337508819,1725726648381,-1914.57,0.00014995,2]
[337508820,1725726648391,-545.2,0.00014995,2]
[337508821,1725726648401,-545.2,0.00014995,2]
[337508822,1725726648412,-1839.615959,0.00014995,2]
[337508823,1725726648421,-1839.615959,0.00014995,2]
[337508824,1725726648432,-154.36238,0.00014995,2]
[337508825,1725726648442,-152.714662,0.00014995,2]
[337508826,1725726648451,-4445.61,0.00014995,2]
[337508827,1725726648461,-1435.674404,0.00014995,2]
[337508828,1725726648471,-1275.97,0.00014995,2]
[337508829,1725726648480,-1275.97,0.00014995,2]
[337508830,1725726648490,-1435.674404,0.00014995,2]
[337508831,1725726648499,-3786.34,0.00014995,2]
[337508832,1725726648509,-8721.16,0.00014995,2]
[337508833,1725726648519,-8721.16,0.00014995,2]
[337508834,1725726648529,-4343.84,0.00014995,2]
[337508835,1725726648538,-4343.84,0.00014995,2]
[337508836,1725726648548,-7527.25,0.00014995,2]
[337508837,1725726648558,-5843.92,0.00014995,2]
[337508838,1725726648568,-151.0,0.00014995,2]
[337508839,1725726648578,-5843.92,0.00014995,2]
[337508840,1725726648589,-5086.98,0.00014995,2]
[337508841,1725726648599,-5086.98,0.00014995,2]
[337508842,1725726648609,-5029.67,0.00014995,2]
[337508843,1725726648620,-5029.67,0.00014995,2]
[337508844,1725726648630,-20597.38,0.00014995,2]
[337508845,1725726648639,-5093.27,0.00014995,2]
[337508846,1725726648650,-5093.27,0.00014995,2]
[337508847,1725726648660,-596.716396,0.00014995,2]
[337508848,1725726648670,-596.716396,0.00014995,2]
[337508849,1725726648681,-1122.9,0.00014995,2]
[337508850,1725726648691,-1122.9,0.00014995,2]
[337508851,1725726648700,-731.618904,0.00014995,2]
[337508852,1725726648711,-44460.33,0.00014995,2]
[337508853,1725726648721,-731.618904,0.00014995,2]
[337508854,1725726648729,-151.0,0.00014995,2]
[337508855,1725726648738,-740.78,0.00014995,2]
[337508856,1725726648748,-711.13,0.00014995,2]
[337508857,1725726648757,-711.13,0.00014995,2]
[337508858,1725726648767,-4750.04,0.00014995,2]
[337508859,1725726648776,-4750.04,0.00014995,2]
[337508860,1725726648786,-3553.18,0.00014995,2]
[337508861,1725726648797,-3553.18,0.00014995,2]
[337508862,1725726648806,-500.0,0.00014995,2]
[337508863,1725726648815,-2150.59,0.00014995,2]
[337508864,1725726648825,-2150.59,0.00014995,2]
[337508865,1725726648834,-1977.37,0.00014995,2]
[337508866,1725726648843,-1977.37,0.00014995,2]
[337508867,1725726648852,-4768.05,0.00014995,2]
[337508868,1725726648862,-1414.33,0.00014995,2]
[337508869,1725726648871,-1414.33,0.00014995,2]
[337508870,1725726648880,-2454.92,0.00014995,2]
[337508871,1725726648889,-2454.92,0.00014995,2]
[337508872,1725726648899,-4749.95,0.00014995,2]
[337508873,1725726648908,-4749.95,0.00014995,2]
[337508874,1725726648917,-5829.88,0.00014995,2]
[337508875,1725726648927,-8602.8,0.00014995,2]
[337508876,1725726648936,-8602.8,0.00014995,2]
[337508877,1725726648945,-500.0,0.00014995,2]
[337508878,1725726648954,-500.0,0.00014995,2]
[337508879,1725726648964,-727.11,0.00014995,2]
[337508880,1725726648973,-727.11,0.00014995,2]
[337508881,1725726648983,-13301.88,0.00014995,2]
[337508882,1725726648992,-13301.88,0.00014995,2]
[337508883,1725726649001,-6198.36,0.00014995,2]
[337508884,1725726649011,-6198.36,0.00014995,2]
[337508885,1725726649020,-7273.33,0.00014995,2]
[337508886,1725726649029,-7273.33,0.00014995,2]
[337508887,1725726649038,-4597.04,0.00014995,2]
[337508888,1725726649047,-4597.04,0.00014995,2]
[337508889,1725726649056,-10708.28,0.00014995,2]
[337508890,1725726649066,-10708.28,0.00014995,2]
[337508891,1725726649075,-1042.04,0.00014995,2]
[337508892,1725726649084,-1042.04,0.00014995,2]
[337508893,1725726649093,-5547.63,0.00014995,2]
[337508894,1725726649103,-5547.63,0.00014995,2]
[337508895,1725726649112,-2712.06,0.00014995,2]
[337508896,1725726649122,-8781.073974,0.00014995,2]
[337508897,1725726649131,-8781.073974,0.00014995,2]
[337508898,1725726649140,-4273.66,0.00014995,2]
[337508899,1725726649150,-4273.66,0.00014995,2]
[337508900,1725726649159,-3521.78,0.00014995,2]
[337508901,1725726649168,-3521.78,0.00014995,2]
[337508902,1725726649178,-604.16,0.00014995,2]
[337508903,1725726649187,-7079.16,0.00014995,2]
[337508904,1725726649197,-7079.16,0.00014995,2]
[337508905,1725726649206,-10889.95,0.00014995,2]
[337508906,1725726649215,-10889.95,0.00014995,2]
[337508907,1725726649225,-757.33,0.00014995,2]
[337508908,1725726649234,-757.33,0.00014995,2]
[337508909,1725726649244,-798.26,0.00014995,2]
[337508910,1725726649253,-500.0,0.00014995,2]
[337508911,1725726649263,-500.0,0.00014995,2]
[337508912,1725726649272,-500.0,0.00014995,2]
[337508913,1725726649283,-500.0,0.00014995,2]
[337508914,1725726649292,-500.0,0.00014995,2]
[337508915,1725726649302,-4039.09,0.00014995,2]
[337508916,1725726649311,-4039.09,0.00014995,2]
[337508917,1725726649321,-3561.88,0.00014995,2]
[337508918,1725726649331,-607.0,0.00014995,2]
[337508919,1725726649344,-607.0,0.00014995,2]
[337508920,1725726649354,-607.0,0.00014995,2]
[337508921,1725726649363,-607.0,0.00014995,2]
[337508922,1725726649373,-607.0,0.00014995,2]
[337508923,1725726649383,-1621.7,0.00014995,2]
[337508924,1725726649393,-1621.7,0.00014995,2]
[337508925,1725726649402,-1574.7,0.00014995,2]
[337508926,1725726649411,-1574.7,0.00014995,2]
[337508927,1725726649421,-986.59,0.00014995,2]
[337508928,1725726649438,-986.59,0.00014995,2]
[337508929,1725726649449,-986.59,0.00014995,2]
[337508930,1725726649458,-986.59,0.00014995,2]
[337508931,1725726649468,-986.59,0.00014995,2]
[337508932,1725726649477,-151.0,0.00014995,2]
[337508933,1725726649487,-171.807679,0.00014995,2]
[337508934,1725726649496,-258599.24390588,0.00014996,2]
[337508935,1725726649506,-500.0,0.00014996,2]
[337508936,1725726649515,-500.0,0.00014996,2]
[337508937,1725726649524,-500.0,0.00014996,2]
[337508938,1725726649534,-500.0,0.00014996,2]
[337508939,1725726649543,-500.0,0.00014996,2]
[337508940,1725726649552,-500.0,0.00014996,2]
[337508941,1725726649561,-500.0,0.00014996,2]
[337508942,1725726649571,-151.0,0.00014996,2]
[337508943,1725726649579,-500.0,0.00014996,2]
[337508944,1725726649588,-595.88,0.00014996,2]
[337508945,1725726649597,-543.12,0.00014996,2]
[337508946,1725726649607,-543.12,0.00014996,2]
[337508947,1725726649616,-500.0,0.00014996,2]
[337508948,1725726649626,-500.0,0.00014996,2]
[337508949,1725726649638,-489.39,0.00014996,2]
[337508950,1725726649648,-500.0,0.00014996,2]
[337508951,1725726649657,-500.0,0.00014996,2]
[337508952,1725726649667,-500.0,0.00014996,2]
[337508953,1725726649678,-500.0,0.00014996,2]
[337508954,1725726649688,-500.0,0.00014996,2]
[337508955,1725726649697,-500.0,0.00014996,2]
[337508956,1725726649706,-500.0,0.00014996,2]
[337508957,1725726649715,-500.0,0.00014996,2]
[337508958,1725726649724,-151.0,0.00014996,2]
[337508959,1725726649736,-500.0,0.00014996,2]
[337508960,1725726649746,-500.0,0.00014996,2]
[337508961,1725726649756,-382.54,0.00014996,2]
[337508962,1725726649765,-500.0,0.00014996,2]
[337508963,1725726649776,-500.0,0.00014996,2]
[337508964,1725726649785,-500.0,0.00014996,2]
[337508965,1725726649795,-500.0,0.00014996,2]
[337508966,1725726649807,-500.0,0.00014996,2]
[337508967,1725726649818,-925.29,0.00014996,2]
[337508968,1725726649829,-925.29,0.00014996,2]
[337508969,1725726649839,-500.0,0.00014996,2]
[337508970,1725726649848,-500.0,0.00014996,2]
[337508971,1725726649858,-500.0,0.00014996,2]
[337508972,1725726649907,-760.19,0.00014996,2]
[337508973,1725726649916,-760.19,0.00014996,2]
[337508974,1725726649926,-500.0,0.00014996,2]
[337508975,1725726649935,-500.0,0.00014996,2]
[337508976,1725726649947,-500.0,0.00014996,2]
[337508977,1725726649957,-500.0,0.00014996,2]
[337508978,1725726649969,-500.0,0.00014996,2]
[337508979,1725726649979,-500.0,0.00014996,2]
[337508980,1725726649989,-500.0,0.00014996,2]
[337508981,1725726649999,-500.0,0.00014996,2]
[337508982,1725726650010,-558.76609188,0.00014996,2]
[337508983,1725726650020,-500.0,0.00014996,2]
[337508984,1725726650031,-931.93,0.00014996,2]
[337508985,1725726650041,-931.93,0.00014996,2]
[337508986,1725726650051,-500.0,0.00014996,2]
[337508987,1725726650062,-920.35,0.00014996,2]
[337508988,1725726650071,-500.0,0.00014996,2]
[337508989,1725726650080,-822.93,0.00014996,2]
[337508990,1725726650090,-500.0,0.00014996,2]
[337508991,1725726650101,-500.0,0.00014996,2]
[337508992,1725726650111,-500.0,0.00014996,2]
[337508993,1725726650123,-500.0,0.00014996,2]
[337508994,1725726650133,-500.0,0.00014996,2]
[337508995,1725726650144,-500.0,0.00014996,2]
[337508996,1725726650154,-500.0,0.00014996,2]
[337508997,1725726650164,-598.75,0.00014996,2]
[337508998,1725726650174,-1953.6,0.00014996,2]
[337508999,1725726650183,-1953.6,0.00014996,2]
[337509000,1725726650194,-1953.6,0.00014996,2]
[337509001,1725726650203,-1953.6,0.00014996,2]
[337509002,1725726650213,-1953.6,0.00014996,2]
[337509003,1725726650224,-500.0,0.00014996,2]
[337509004,1725726650232,-500.0,0.00014996,2]
[337509005,1725726650243,-1143.14,0.00014996,2]
[337509006,1725726650255,-90447.81,0.00014996,2]
[337509007,1725726650265,-90447.81,0.00014996,2]
[337509008,1725726650274,-90447.81,0.00014996,2]
[337509009,1725726650283,-90447.81,0.00014996,2]
[337509010,1725726650294,-90447.81,0.00014996,2]
[337509011,1725726650306,-500.0,0.00014996,2]
[337509012,1725726650315,-500.0,0.00014996,2]
[337509013,1725726650325,-500.0,0.00014996,2]
[337509014,1725726650335,-4746.81,0.00014996,2]
[337509015,1725726650345,-151.0,0.00014996,2]
[337509016,1725726650354,-4746.81,0.00014996,2]
[337509017,1725726650363,-2100.58,0.00014996,2]
[337509018,1725726650372,-500.0,0.00014996,2]
[337509019,1725726650382,-4746.81,0.00014996,2]
[337509020,1725726650391,-2100.58,0.00014996,2]
[337509021,1725726650400,-151.0,0.00014996,2]
[337509022,1725726650408,-500.0,0.00014996,2]
[337509023,1725726650419,-4746.81,0.00014996,2]
[337509024,1725726650429,-2100.58,0.00014996,2]
[337509025,1725726650438,-4746.81,0.00014996,2]
[337509026,1725726650447,-3725.33,0.00014996,2]
[337509027,1725726650456,-582.69,0.00014996,2]
[337509028,1725726650465,-500.0,0.00014996,2]
[337509029,1725726650474,-500.0,0.00014996,2]
[337509030,1725726650483,-500.0,0.00014996,2]
[337509031,1725726650492,-2442.79,0.00014996,2]
[337509032,1725726650501,-2442.79,0.00014996,2]
[337509033,1725726650510,-2442.79,0.00014996,2]
[337509034,1725726650519,-2442.79,0.00014996,2]
[337509035,1725726650528,-2442.79,0.00014996,2]
[337509036,1725726650538,-500.0,0.00014996,2]
[337509037,1725726650550,-1914.57,0.00014996,2]
[337509038,1725726650560,-1914.57,0.00014996,2]
[337509039,1725726650570,-1914.57,0.00014996,2]
[337509040,1725726650581,-500.0,0.00014996,2]
[337509041,1725726650591,-545.2,0.00014996,2]
[337509042,1725726650600,-545.2,0.00014996,2]
[337509043,1725726650610,-545.2,0.00014996,2]
[337509044,1725726650622,-545.2,0.00014996,2]
[337509045,1725726650632,-545.2,0.00014996,2]
[337509046,1725726650642,-1839.615959,0.00014996,2]
[337509047,1725726650651,-1839.615959,0.00014996,2]
[337509048,1725726650661,-154.36238,0.00014996,2]
[337509049,1725726650671,-1839.615959,0.00014996,2]
[337509050,1725726650683,-1839.615959,0.00014996,2]
[337509051,1725726650692,-1839.615959,0.00014996,2]
[337509052,1725726650702,-4445.61,0.00014996,2]
[337509053,1725726650711,-4445.61,0.00014996,2]
[337509054,1725726650720,-4445.61,0.00014996,2]
[337509055,1725726650730,-1275.97,0.00014996,2]
[337509056,1725726650739,-1435.674404,0.00014996,2]
[337509057,1725726650748,-1275.97,0.00014996,2]
[337509058,1725726650758,-1275.97,0.00014996,2]
[337509059,1725726650768,-1275.97,0.00014996,2]
[337509060,1725726650778,-1435.674404,0.00014996,2]
[337509061,1725726650788,-1275.97,0.00014996,2]
[337509062,1725726650797,-1435.674404,0.00014996,2]
[337509063,1725726650807,-1435.674404,0.00014996,2]
[337509064,1725726650816,-1435.674404,0.00014996,2]
[337509065,1725726650826,-1512.47,0.00014996,2]
[337509066,1725726650835,-3786.34,0.00014996,2]
[337509067,1725726650845,-3786.34,0.00014996,2]
[337509068,1725726650854,-3786.34,0.00014996,2]
[337509069,1725726650864,-8721.16,0.00014996,2]
[337509070,1725726650873,-8721.16,0.00014996,2]
[337509071,1725726650883,-8721.16,0.00014996,2]
[337509072,1725726650893,-8721.16,0.00014996,2]
[337509073,1725726650905,-8721.16,0.00014996,2]
[337509074,1725726650916,-4343.84,0.00014996,2]
[337509075,1725726650926,-4343.84,0.00014996,2]
[337509076,1725726650935,-4343.84,0.00014996,2]
[337509077,1725726650945,-4343.84,0.00014996,2]
[337509078,1725726650954,-500.0,0.00014996,2]
[337509079,1725726650964,-4343.84,0.00014996,2]
[337509080,1725726650975,-4343.84,0.00014996,2]
[337509081,1725726650985,-7527.25,0.00014996,2]
[337509082,1725726650994,-4343.84,0.00014996,2]
[337509083,1725726651004,-7527.25,0.00014996,2]
[337509084,1725726651013,-4343.84,0.00014996,2]
[337509085,1725726651023,-7527.25,0.00014996,2]
[337509086,1725726651032,-151.0,0.00014996,2]
[337509087,1725726651042,-5843.92,0.00014996,2]
[337509088,1725726651051,-5843.92,0.00014996,2]
[337509089,1725726651062,-5843.92,0.00014996,2]
[337509090,1725726651072,-5843.92,0.00014996,2]
[337509091,1725726651082,-151.0,0.00014996,2]
[337509092,1725726651091,-5843.92,0.00014996,2]
[337509093,1725726651101,-5843.92,0.00014996,2]
[337509094,1725726651111,-5843.92,0.00014996,2]
[337509095,1725726651122,-5843.92,0.00014996,2]
[337509096,1725726651132,-5086.98,0.00014996,2]
[337509097,1725726651142,-5086.98,0.00014996,2]
[337509098,1725726651152,-568.33,0.00014996,2]
[337509099,1725726651164,-5086.98,0.00014996,2]
[337509100,1725726651173,-5086.98,0.00014996,2]
[337509101,1725726651183,-5086.98,0.00014996,2]
[337509102,1725726651193,-5029.67,0.00014996,2]
[337509103,1725726651204,-5029.67,0.00014996,2]
[337509104,1725726651214,-5029.67,0.00014996,2]
[337509105,1725726651225,-5029.67,0.00014996,2]
[337509106,1725726651236,-5029.67,0.00014996,2]
[337509107,1725726651248,-5029.67,0.00014996,2]
[337509108,1725726651261,-5029.67,0.00014996,2]
[337509109,1725726651272,-5029.67,0.00014996,2]
[337509110,1725726651282,-20597.38,0.00014996,2]
[337509111,1725726651292,-20597.38,0.00014996,2]
[337509112,1725726651303,-20597.38,0.00014996,2]
[337509113,1725726651312,-5093.27,0.00014996,2]
[337509114,1725726651322,-5093.27,0.00014996,2]
[337509115,1725726651334,-5093.27,0.00014996,2]
[337509116,1725726651345,-596.716396,0.00014996,2]
[337509117,1725726651355,-5093.27,0.00014996,2]
[337509118,1725726651365,-596.716396,0.00014996,2]
[337509119,1725726651374,-5093.27,0.00014996,2]
[337509120,1725726651384,-596.716396,0.00014996,2]
[337509121,1725726651394,-5093.27,0.00014996,2]
[337509122,1725726651404,-5093.27,0.00014996,2]
[337509123,1725726651414,-596.716396,0.00014996,2]
[337509124,1725726651424,-5093.27,0.00014996,2]
[337509125,1725726651434,-596.716396,0.00014996,2]
[337509126,1725726651444,-596.716396,0.00014996,2]
[337509127,1725726651454,-596.716396,0.00014996,2]
[337509128,1725726651464,-596.716396,0.00014996,2]
[337509129,1725726651474,-500.0,0.00014996,2]
[337509130,1725726651484,-1122.9,0.00014996,2]
[337509131,1725726651494,-731.618904,0.00014996,2]
[337509132,1725726651505,-1122.9,0.00014996,2]
[337509133,1725726651514,-1122.9,0.00014996,2]
[337509134,1725726651524,-731.618904,0.00014996,2]
[337509135,1725726651534,-1122.9,0.00014996,2]
[337509136,1725726651543,-731.618904,0.00014996,2]
[337509137,1725726651553,-1122.9,0.00014996,2]
[337509138,1725726651563,-731.618904,0.00014996,2]
[337509139,1725726651574,-44460.33,0.00014996,2]
[337509140,1725726651584,-44460.33,0.00014996,2]
[337509141,1725726651594,-44460.33,0.00014996,2]
[337509142,1725726651604,-731.618904,0.00014996,2]
[337509143,1725726651614,-731.618904,0.00014996,2]
[337509144,1725726651623,-731.618904,0.00014996,2]
[337509145,1725726651633,-731.618904,0.00014996,2]
[337509146,1725726651643,-500.0,0.00014996,2]
[337509147,1725726651653,-6827.18,0.00014996,2]
[337509148,1725726651662,-151.0,0.00014996,2]
[337509149,1725726651672,-151.0,0.00014996,2]
[337509150,1725726651682,-151.0,0.00014996,2]
[337509151,1725726651692,-740.78,0.00014996,2]
[337509152,1725726651702,-151.0,0.00014996,2]
[337509153,1725726651712,-740.78,0.00014996,2]
[337509154,1725726651722,-740.78,0.00014996,2]
[337509155,1725726651732,-711.13,0.00014996,2]
[337509156,1725726651742,-711.13,0.00014996,2]
[337509157,1725726651751,-711.13,0.00014996,2]
[337509158,1725726651761,-711.13,0.00014996,2]
[337509159,1725726651771,-711.13,0.00014996,2]
[337509160,1725726651781,-711.13,0.00014996,2]
[337509161,1725726651791,-711.13,0.00014996,2]
[337509162,1725726651801,-711.13,0.00014996,2]
[337509163,1725726651811,-4750.04,0.00014996,2]
[337509164,1725726651820,-4750.04,0.00014996,2]
[337509165,1725726651830,-4750.04,0.00014996,2]
[337509166,1725726651840,-4750.04,0.00014996,2]
[337509167,1725726651850,-4750.04,0.00014996,2]
[337509168,1725726651859,-500.0,0.00014996,2]
[337509169,1725726651869,-3553.18,0.00014996,2]
[337509170,1725726651878,-3553.18,0.00014996,2]
[337509171,1725726651888,-3553.18,0.00014996,2]
[337509172,1725726651897,-3553.18,0.00014996,2]
[337509173,1725726651906,-500.0,0.00014996,2]
[337509174,1725726651916,-3553.18,0.00014996,2]
[337509175,1725726651925,-3553.18,0.00014996,2]
[337509176,1725726651935,-500.0,0.00014996,2]
[337509177,1725726651945,-3553.18,0.00014996,2]
[337509178,1725726651954,-500.0,0.00014996,2]
[337509179,1725726651964,-3553.18,0.00014996,2]
[337509180,1725726651974,-500.0,0.00014996,2]
[337509181,1725726651984,-2150.59,0.00014996,2]
[337509182,1725726651993,-2150.59,0.00014996,2]
[337509183,1725726652003,-2150.59,0.00014996,2]
[337509184,1725726652013,-2150.59,0.00014996,2]
[337509185,1725726652023,-2150.59,0.00014996,2]
[337509186,1725726652032,-1977.37,0.00014996,2]
[337509187,1725726652042,-1977.37,0.00014996,2]
[337509188,1725726652051,-808.6,0.00014996,2]
[337509189,1725726652060,-1977.37,0.00014996,2]
[337509190,1725726652070,-1977.37,0.00014996,2]
[337509191,1725726652079,-1977.37,0.00014996,2]
[337509192,1725726652089,-1977.37,0.00014996,2]
[337509193,1725726652098,-1977.37,0.00014996,2]
[337509194,1725726652107,-1977.37,0.00014996,2]
[337509195,1725726652117,-4768.05,0.00014996,2]
[337509196,1725726652127,-4768.05,0.00014996,2]
[337509197,1725726652136,-4768.05,0.00014996,2]
[337509198,1725726652146,-1414.33,0.00014996,2]
[337509199,1725726652156,-1414.33,0.00014996,2]
[337509200,1725726652166,-1414.33,0.00014996,2]